fUST/lending_fUST_20240721
["ID","MTS","AMOUNT","RATE_DAILY","PERIOD"]
[332765098,1721508647534,-500.0,0.00013972,2]
[332765099,1721508647546,-500.0,0.00013972,2]
[332765100,1721508647558,-274.77327132,0.00013972,2]
[332765101,1721508647569,-500.0,0.00013972,2]
[332765102,1721508647582,-502.03335675,0.00013972,2]
[332765103,1721508647593,-500.0,0.00013972,2]
[332765104,1721508647604,-568.59,0.00013972,2]
[332765105,1721508647615,-500.0,0.00013972,2]
[332765106,1721508647626,-2686.8,0.00013972,2]
[332765107,1721508647637,-500.0,0.00013972,2]
[332765108,1721508647649,-500.0,0.00013972,2]
[332765109,1721508647659,-2224.67,0.00013972,2]
[332765110,1721508647670,-500.0,0.00013972,2]
[332765111,1721508647681,-500.0,0.00013972,2]
[332765112,1721508647692,-500.0,0.00013972,2]
[332765113,1721508647707,-500.0,0.00013972,2]
[332765114,1721508647718,-500.0,0.00013972,2]
[332765115,1721508647730,-500.0,0.00013972,2]
[332765116,1721508647742,-500.0,0.00013972,2]
[332765117,1721508647754,-500.0,0.00013972,2]
[332765118,1721508647764,-3019.91,0.00013972,2]
[332765119,1721508647777,-500.0,0.00013972,2]
[332765120,1721508647790,-1114.92,0.00013972,2]
[332765121,1721508647801,-805.55,0.00013972,2]
[332765122,1721508647813,-503.42,0.00013972,2]
[332765123,1721508647824,-500.0,0.00013972,2]
[332765124,1721508647836,-500.0,0.00013972,2]
[332765125,1721508647847,-500.0,0.00013972,2]
[332765126,1721508647858,-926.66,0.00013972,2]
[332765127,1721508647870,-500.0,0.00013972,2]
[332765128,1721508647881,-500.0,0.00013972,2]
[332765129,1721508647892,-500.0,0.00013972,2]
[332765130,1721508647903,-500.0,0.00013972,2]
[332765131,1721508647915,-750.01,0.00013972,2]
[332765132,1721508647925,-749.11,0.00013972,2]
[332765133,1721508647936,-977.73,0.00013972,2]
[332765134,1721508647947,-500.0,0.00013972,2]
[332765135,1721508647958,-500.0,0.00013972,2]
[332765136,1721508647969,-1075.22,0.00013972,2]
[332765137,1721508647979,-503.24791271,0.00013972,2]
[332765138,1721508647990,-500.0,0.00013972,2]
[332765139,1721508648002,-500.0,0.00013972,2]
[332765140,1721508648013,-625.8,0.00013972,2]
[332765141,1721508648025,-500.0,0.00013972,2]
[332765142,1721508648036,-500.0,0.00013972,2]
[332765143,1721508648046,-500.0,0.00013972,2]
[332765144,1721508648058,-500.0,0.00013972,2]
[332765145,1721508648070,-500.0,0.00013972,2]
[332765146,1721508648081,-500.0,0.00013972,2]
[332765147,1721508648092,-500.0,0.00013972,2]
[332765148,1721508648104,-500.0,0.00013972,2]
[332765149,1721508648114,-500.0,0.00013972,2]
[332765150,1721508648126,-592.03,0.00013972,2]
[332765151,1721508648138,-536.17445901,0.00013972,2]
[332765152,1721508648149,-500.0,0.00013972,2]
[332765153,1721508648160,-500.0,0.00013972,2]
[332765154,1721508648170,-3956.68,0.00013972,2]
[332765155,1721508648181,-500.0,0.00013972,2]
[332765156,1721508648192,-691.92,0.00013972,2]
[332765157,1721508648202,-500.0,0.00013972,2]
[332765158,1721508648213,-545.09,0.00013972,2]
[332765159,1721508648224,-1408.97,0.00013972,2]
[332765160,1721508648234,-1976.48,0.00013972,2]
[332765161,1721508648245,-671.35,0.00013972,2]
[332765162,1721508648256,-515.84546709,0.00013972,2]
[332765163,1721508648267,-508.7950236,0.00013972,2]
[332765164,1721508648277,-500.0,0.00013972,2]
[332765165,1721508648289,-500.0,0.00013972,2]
[332765166,1721508648300,-500.0,0.00013972,2]
[332765167,1721508648312,-504.00214773,0.00013972,2]
[332765168,1721508648323,-500.0,0.00013972,2]
[332765169,1721508648334,-1775.97,0.00013972,2]
[332765170,1721508648346,-500.0,0.00013972,2]
[332765171,1721508648357,-569.81,0.00013972,2]
[332765172,1721508648368,-500.0,0.00013972,2]
[332765173,1721508648379,-500.0,0.00013972,2]
[332765174,1721508648390,-502.36816493,0.00013972,2]
[332765175,1721508648401,-512.3,0.00013972,2]
[332765176,1721508648412,-1870.22,0.00013972,2]
[332765177,1721508648423,-564.04,0.00013972,2]
[332765178,1721508648435,-500.0,0.00013972,2]
[332765179,1721508648447,-1574.83,0.00013972,2]
[332765180,1721508648458,-500.0,0.00013972,2]
[332765181,1721508648469,-500.0,0.00013972,2]
[332765182,1721508648480,-532.72,0.00013972,2]
[332765183,1721508648491,-767.04,0.00013972,2]
[332765184,1721508648501,-500.0,0.00013972,2]
[332765185,1721508648512,-500.0,0.00013972,2]
[332765186,1721508648524,-500.0,0.00013972,2]
[332765187,1721508648535,-824.82,0.00013972,2]
[332765188,1721508648546,-500.0,0.00013972,2]
[332765189,1721508648557,-545.09,0.00013972,2]
[332765190,1721508648567,-500.0,0.00013972,2]
[332765191,1721508648579,-630.69,0.00013972,2]
[332765192,1721508648591,-500.0,0.00013972,2]
[332765193,1721508648603,-500.0,0.00013972,2]
[332765194,1721508648615,-1259.4,0.00013972,2]
[332765195,1721508648626,-811.3,0.00013972,2]
[332765196,1721508648637,-500.0,0.00013972,2]
[332765197,1721508648648,-859.66,0.00013972,2]
[332765198,1721508648660,-880.13,0.00013972,2]
[332765199,1721508648671,-606.47,0.00013972,2]
[332765200,1721508649007,-511.32174449,0.00013972,2]
[332765201,1721508649035,-2551.02,0.00013972,2]
[332765202,1721508649047,-1271.9,0.00013972,2]
[332765203,1721508649057,-500.0,0.00013972,2]
[332765204,1721508649067,-500.0,0.00013972,2]
[332765205,1721508649078,-1694.34,0.00013972,2]
[332765206,1721508649088,-500.0,0.00013972,2]
[332765207,1721508649099,-500.0,0.00013972,2]
[332765208,1721508649108,-500.0,0.00013972,2]
[332765209,1721508649118,-1673.13,0.00013972,2]
[332765210,1721508649129,-500.0,0.00013972,2]
[332765211,1721508649139,-500.0,0.00013972,2]
[332765212,1721508649151,-500.0,0.00013972,2]
[332765213,1721508649162,-1967.34,0.00013972,2]
[332765214,1721508649172,-500.0,0.00013972,2]
[332765215,1721508649182,-501.43123297,0.00013972,2]
[332765216,1721508649193,-500.0,0.00013972,2]
[332765217,1721508649204,-500.0,0.00013972,2]
[332765218,1721508649214,-500.0,0.00013972,2]
[332765219,1721508649224,-500.0,0.00013972,2]
[332765220,1721508649234,-500.0,0.00013972,2]
[332765221,1721508649244,-177.09484028,0.00013972,2]
[332765222,1721508649253,-521.45625736,0.00013972,2]
[332765223,1721508649264,-1296.63,0.00013972,2]
[332765224,1721508649273,-856.09,0.00013972,2]
[332765225,1721508649283,-1379.95,0.00013972,2]
[332765226,1721508649293,-1680.79,0.00013972,2]
[332765227,1721508649304,-539.29,0.00013972,2]
[332765228,1721508649313,-502.54970071,0.00013972,2]
[332765229,1721508649323,-500.0,0.00013972,2]
[332765230,1721508649333,-534.53,0.00013972,2]
[332765231,1721508649343,-526.48973884,0.00013972,2]
[332765232,1721508649353,-500.0,0.00013972,2]
[332765233,1721508649365,-335.80325809,0.00013972,2]
[332765234,1721508649375,-2006.64,0.00013972,2]
[332765235,1721508649385,-500.0,0.00013972,2]
[332765236,1721508649395,-712.22,0.00013972,2]
[332765237,1721508649405,-500.0,0.00013972,2]
[332765238,1721508649416,-1929.81,0.00013972,2]
[332765239,1721508649426,-739.61,0.00013972,2]
[332765240,1721508649437,-831.82,0.00013972,2]
[332765241,1721508649448,-663.89,0.00013972,2]
[332765242,1721508649458,-778.32,0.00013972,2]
[332765243,1721508649468,-500.0,0.00013972,2]
[332765244,1721508649479,-500.0,0.00013972,2]
[332765245,1721508649489,-1019.27,0.00013972,2]
[332765246,1721508649499,-500.0,0.00013972,2]
[332765247,1721508649510,-882.84,0.00013972,2]
[332765248,1721508649520,-500.0,0.00013972,2]
[332765249,1721508649530,-958.78,0.00013972,2]
[332765250,1721508649540,-500.0,0.00013972,2]
[332765251,1721508649549,-500.0,0.00013972,2]
[332765252,1721508649560,-500.0,0.00013972,2]
[332765253,1721508649570,-500.0,0.00013972,2]
[332765254,1721508649579,-560.9,0.00013972,2]
[332765255,1721508649590,-500.0,0.00013972,2]
[332765256,1721508649600,-500.0,0.00013972,2]
[332765257,1721508649610,-500.0,0.00013972,2]
[332765258,1721508649620,-500.0,0.00013972,2]
[332765259,1721508649629,-660.14,0.00013972,2]
[332765260,1721508649640,-500.0,0.00013972,2]
[332765261,1721508649650,-500.0,0.00013972,2]
[332765262,1721508649659,-500.0,0.00013972,2]
[332765263,1721508649669,-500.0,0.00013972,2]
[332765264,1721508649679,-500.0,0.00013972,2]
[332765265,1721508649689,-500.0,0.00013972,2]
[332765266,1721508649700,-551.34285931,0.00013972,2]
[332765267,1721508649711,-510.07389428,0.00013972,2]
[332765268,1721508649720,-505.36147925,0.00013972,2]
[332765269,1721508649730,-2154.81,0.00013972,2]
[332765270,1721508649739,-3543.88,0.00013972,2]
[332765271,1721508649750,-500.0,0.00013972,2]
[332765272,1721508649760,-500.0,0.00013972,2]
[332765273,1721508649770,-500.76394624,0.00013972,2]
[332765274,1721508649782,-500.0,0.00013972,2]
[332765275,1721508649791,-500.0,0.00013972,2]
[332765276,1721508649802,-1454.6,0.00013972,2]
[332765277,1721508649811,-8312.4,0.00013972,2]
[332765278,1721508649822,-500.0,0.00013972,2]
[332765279,1721508649831,-894.43,0.00013972,2]
[332765280,1721508649841,-500.0,0.00013972,2]
[332765281,1721508649850,-500.0,0.00013972,2]
[332765282,1721508649860,-1940.23,0.00013972,2]
[332765283,1721508649871,-717.4,0.00013972,2]
[332765284,1721508649881,-570.53,0.00013972,2]
[332765285,1721508649891,-539.75121852,0.00013972,2]
[332765286,1721508649901,-500.0,0.00013972,2]
[332765287,1721508649912,-500.0,0.00013972,2]
[332765288,1721508649923,-4361.09,0.00013972,2]
[332765289,1721508649935,-500.0,0.00013972,2]
[332765290,1721508649946,-746.07,0.00013972,2]
[332765291,1721508649956,-500.0,0.00013972,2]
[332765292,1721508649965,-1134.6,0.00013972,2]
[332765293,1721508649975,-500.0,0.00013972,2]
[332765294,1721508649986,-500.0,0.00013972,2]
[332765295,1721508649996,-2310.99,0.00013972,2]
[332765296,1721508650021,-2713.02,0.00013972,2]
[332765297,1721508650033,-500.0,0.00013972,2]
[332765298,1721508650043,-3329.56,0.00013972,2]
[332765299,1721508650055,-500.0,0.00013972,2]
[332765300,1721508650066,-698.5,0.00013972,2]
[332765301,1721508650079,-500.0,0.00013972,2]
[332765302,1721508650090,-1000.15,0.00013972,2]
[332765303,1721508650101,-500.0,0.00013972,2]
[332765304,1721508650111,-500.0,0.00013972,2]
[332765305,1721508650121,-500.0,0.00013972,2]
[332765306,1721508650131,-500.0,0.00013972,2]
[332765307,1721508650141,-500.0,0.00013972,2]
[332765308,1721508650151,-500.0,0.00013972,2]
[332765309,1721508650162,-500.0,0.00013972,2]
[332765310,1721508650174,-3309.35,0.00013972,2]
[332765311,1721508650185,-500.0,0.00013972,2]
[332765312,1721508650195,-500.0,0.00013972,2]
[332765313,1721508650205,-500.0,0.00013972,2]
[332765314,1721508650215,-501.88237339,0.00013972,2]
[332765315,1721508650225,-500.0,0.00013972,2]
[332765316,1721508650236,-2195.11,0.00013972,2]
[332765317,1721508650246,-500.0,0.00013972,2]
[332765318,1721508650256,-501.52214706,0.00013972,2]
[332765319,1721508650267,-500.0,0.00013972,2]
[332765320,1721508650276,-500.0,0.00013972,2]
[332765321,1721508650287,-504.35,0.00013972,2]
[332765322,1721508650297,-500.0,0.00013972,2]
[332765323,1721508650311,-500.0,0.00013972,2]
[332765324,1721508650320,-500.0,0.00013972,2]
[332765325,1721508650330,-500.0,0.00013972,2]
[332765326,1721508650340,-642.05,0.00013972,2]
[332765327,1721508650350,-598.68,0.00013972,2]
[332765328,1721508650359,-1499.84,0.00013972,2]
[332765329,1721508650369,-500.0,0.00013972,2]
[332765330,1721508650378,-511.37040743,0.00013972,2]
[332765331,1721508650388,-500.0,0.00013972,2]
[332765332,1721508650399,-400.0,0.00013972,2]
[332765333,1721508650409,-1719.89,0.00013972,2]
[332765334,1721508650419,-500.0,0.00013972,2]
[332765335,1721508650430,-500.0,0.00013972,2]
[332765336,1721508650440,-500.0,0.00013972,2]
[332765337,1721508650450,-601.52472544,0.00013972,2]
[332765338,1721508650460,-1108.68,0.00013972,2]
[332765339,1721508650470,-500.0,0.00013972,2]
[332765340,1721508650479,-500.0,0.00013972,2]
[332765341,1721508650489,-520.9477985,0.00013972,2]
[332765342,1721508650499,-2328.09,0.00013972,2]
[332765343,1721508650509,-313.35768215,0.00013972,2]
[332765344,1721508650519,-910.55,0.00013972,2]
[332765345,1721508650529,-500.0,0.00013972,2]
[332765346,1721508650539,-500.0,0.00013972,2]
[332765347,1721508650549,-845.78,0.00013972,2]
[332765348,1721508650562,-500.0,0.00013972,2]
[332765349,1721508650571,-612.71,0.00013972,2]
[332765350,1721508650582,-5035.15,0.00013972,2]
[332765351,1721508650592,-624.22,0.00013972,2]
[332765352,1721508650603,-500.0,0.00013972,2]
[332765353,1721508650614,-500.0,0.00013972,2]
[332765354,1721508650624,-539.26,0.00013972,2]
[332765355,1721508650634,-503.55316172,0.00013972,2]
[332765356,1721508650645,-8731.33,0.00013972,2]
[332765357,1721508650655,-500.0,0.00013972,2]
[332765358,1721508650666,-245.08411045,0.00013972,2]
[332765359,1721508650678,-500.0,0.00013972,2]
[332765360,1721508650689,-564.28,0.00013972,2]
[332765361,1721508650701,-500.0,0.00013972,2]
[332765362,1721508650713,-507.42940929,0.00013972,2]
[332765363,1721508650724,-219.41559619,0.00013972,2]
[332765364,1721508650735,-3507.24,0.00013972,2]
[332765365,1721508650747,-2691.83,0.00013972,2]
[332765366,1721508650758,-500.0,0.00013972,2]
[332765367,1721508650767,-500.0,0.00013972,2]
[332765368,1721508650780,-500.0,0.00013972,2]
[332765369,1721508650791,-500.0,0.00013972,2]
[332765370,1721508650803,-6952.2,0.00013972,2]
[332765371,1721508650814,-500.0,0.00013972,2]
[332765372,1721508650825,-500.0,0.00013972,2]
[332765373,1721508650836,-575.82,0.00013972,2]
[332765374,1721508650850,-500.0,0.00013972,2]
[332765375,1721508650863,-1861.51,0.00013972,2]
[332765376,1721508650874,-2932.91,0.00013972,2]
[332765377,1721508650884,-500.0,0.00013972,2]
[332765378,1721508650893,-500.0,0.00013972,2]
[332765379,1721508650903,-500.0,0.00013972,2]
[332765380,1721508650913,-500.0,0.00013972,2]
[332765381,1721508650923,-500.0,0.00013972,2]
[332765382,1721508650933,-500.0,0.00013972,2]
[332765383,1721508650944,-500.0,0.00013972,2]
[332765384,1721508650956,-500.0,0.00013972,2]
[332765385,1721508650967,-500.0,0.00013972,2]
[332765386,1721508650978,-636.8,0.00013972,2]
[332765387,1721508650989,-2044.79,0.00013972,2]
[332765388,1721508651000,-500.0,0.00013972,2]
[332765389,1721508651010,-500.0,0.00013972,2]
[332765390,1721508651020,-500.0,0.00013972,2]
[332765391,1721508651030,-500.0,0.00013972,2]
[332765392,1721508651042,-4564.91,0.00013972,2]
[332765393,1721508651055,-902.99,0.00013972,2]
[332765394,1721508651065,-500.0,0.00013972,2]
[332765395,1721508651075,-1150.52,0.00013972,2]
[332765396,1721508651085,-977.51,0.00013972,2]
[332765397,1721508651094,-500.0,0.00013972,2]
[332765398,1721508651104,-573.56,0.00013972,2]
[332765399,1721508651116,-281.9230277,0.00013972,2]
[332765400,1721508651126,-596.72,0.00013972,2]
[332765401,1721508651137,-500.0,0.00013972,2]
[332765402,1721508651149,-500.0,0.00013972,2]
[332765403,1721508651160,-500.0,0.00013972,2]
[332765404,1721508651171,-500.0,0.00013972,2]
[332765405,1721508651182,-500.0,0.00013972,2]
[332765406,1721508651192,-533.97409384,0.00013972,2]
[332765407,1721508651204,-631.89,0.00013972,2]
[332765408,1721508651214,-500.0,0.00013972,2]
[332765409,1721508651224,-500.0,0.00013972,2]
[332765410,1721508651236,-500.0,0.00013972,2]
[332765411,1721508651247,-4211.07,0.00013972,2]
[332765412,1721508651258,-10536.47,0.00013972,2]
[332765413,1721508651269,-500.0,0.00013972,2]
[332765414,1721508651280,-1363.05,0.00013972,2]
[332765415,1721508651290,-500.0,0.00013972,2]
[332765416,1721508651301,-2383.85,0.00013972,2]
[332765417,1721508651314,-520.92944104,0.00013972,2]
[332765418,1721508651325,-500.0,0.00013972,2]
[332765419,1721508651335,-987.34,0.00013972,2]
[332765420,1721508651346,-500.0,0.00013972,2]
[332765421,1721508651357,-10171.63,0.00013972,2]
[332765422,1721508651367,-555.64,0.00013972,2]
[332765423,1721508651379,-1403.7,0.00013972,2]
[332765424,1721508651390,-1883.98,0.00013972,2]
[332765425,1721508651401,-500.0,0.00013972,2]
[332765426,1721508651412,-500.0,0.00013972,2]
[332765427,1721508651423,-1797.86,0.00013972,2]
[332765428,1721508651434,-500.0,0.00013972,2]
[332765429,1721508651444,-500.0,0.00013972,2]
[332765430,1721508651454,-2455.86,0.00013972,2]
[332765431,1721508651464,-2795.92,0.00013972,2]
[332765432,1721508651477,-500.0,0.00013972,2]
[332765433,1721508651490,-500.0,0.00013972,2]
[332765434,1721508651501,-500.0,0.00013972,2]
[332765435,1721508651512,-500.0,0.00013972,2]
[332765436,1721508651523,-500.0,0.00013972,2]
[332765437,1721508651535,-1080.94,0.00013972,2]
[332765438,1721508651546,-500.0,0.00013972,2]
[332765439,1721508651558,-2876.63,0.00013972,2]
[332765440,1721508651567,-500.0,0.00013972,2]
[332765441,1721508651577,-1248.49,0.00013972,2]
[332765442,1721508651587,-683.23,0.00013972,2]
[332765443,1721508651596,-150.0,0.00013972,2]
[332765444,1721508651606,-618.28186363,0.00013972,2]
[332765445,1721508651616,-500.0,0.00013972,2]
[332765446,1721508651626,-1394.74,0.00013972,2]
[332765447,1721508651637,-1053.46,0.00013972,2]
[332765448,1721508651647,-2889.74,0.00013972,2]
[332765449,1721508651658,-711.65,0.00013972,2]
[332765450,1721508651669,-8392.29,0.00013972,2]
[332765451,1721508651681,-2528.23,0.00013972,2]
[332765452,1721508651691,-500.0,0.00013972,2]
[332765453,1721508651706,-1128.71,0.00013972,2]
[332765454,1721508651719,-500.0,0.00013972,2]
[332765455,1721508651729,-30602.79,0.00013972,2]
[332765456,1721508651739,-500.0,0.00013972,2]
[332765457,1721508651751,-500.0,0.00013972,2]
[332765458,1721508651761,-500.0,0.00013972,2]
[332765459,1721508651771,-826.33,0.00013972,2]
[332765460,1721508651784,-500.0,0.00013972,2]
[332765461,1721508651795,-500.0,0.00013972,2]
[332765462,1721508651806,-500.0,0.00013972,2]
[332765463,1721508651816,-500.0,0.00013972,2]
[332765464,1721508651828,-510.82,0.00013972,2]
[332765465,1721508651838,-1220.21,0.00013972,2]
[332765466,1721508651850,-500.0,0.00013972,2]
[332765467,1721508651862,-500.0,0.00013972,2]
[332765468,1721508651874,-2897.1,0.00013972,2]
[332765469,1721508651884,-813.26,0.00013972,2]
[332765470,1721508651894,-553.50441881,0.00013972,2]
[332765471,1721508651905,-500.0,0.00013972,2]
[332765472,1721508651915,-1044.24,0.00013972,2]
[332765473,1721508651926,-500.0,0.00013972,2]
[332765474,1721508651937,-500.0,0.00013972,2]
[332765475,1721508651949,-2115.68,0.00013972,2]
[332765476,1721508651960,-1522.47,0.00013972,2]
[332765477,1721508651971,-883.66,0.00013972,2]
[332765478,1721508651981,-500.0,0.00013972,2]
[332765479,1721508651991,-1268.18,0.00013972,2]
[332765480,1721508652000,-500.0,0.00013972,2]
[332765481,1721508652010,-590.44,0.00013972,2]
[332765482,1721508652020,-2275.6,0.00013972,2]
[332765483,1721508652029,-500.0,0.00013972,2]
[332765484,1721508652039,-13679.82,0.00013972,2]
[332765485,1721508652049,-2337.86,0.00013972,2]
[332765486,1721508652060,-2042.34,0.00013972,2]
[332765487,1721508652070,-529.26846187,0.00013972,2]
[332765488,1721508652080,-2209.62,0.00013972,2]
[332765489,1721508652090,-500.0,0.00013972,2]
[332765490,1721508652100,-500.0,0.00013972,2]
[332765491,1721508652109,-741.83,0.00013972,2]
[332765492,1721508652119,-542.0321779,0.00013972,2]
[332765493,1721508652131,-500.0,0.00013972,2]
[332765494,1721508652142,-500.0,0.00013972,2]
[332765495,1721508652152,-5656.32,0.00013972,2]
[332765496,1721508652168,-584.64,0.00013972,2]
[332765497,1721508652184,-1305.16,0.00013972,2]
[332765498,1721508652195,-170.43129503,0.00013972,2]
[332765499,1721508652206,-500.0,0.00013972,2]
[332765500,1721508652218,-500.0,0.00013972,2]
[332765501,1721508652231,-500.0,0.00013972,2]
[332765502,1721508652244,-500.0,0.00013972,2]
[332765503,1721508652256,-500.0,0.00013972,2]
[332765504,1721508652268,-500.0,0.00013972,2]
[332765505,1721508652282,-500.0,0.00013972,2]
[332765506,1721508652294,-500.0,0.00013972,2]
[332765507,1721508652304,-500.0,0.00013972,2]
[332765508,1721508652315,-500.0,0.00013972,2]
[332765509,1721508652325,-500.0,0.00013972,2]
[332765510,1721508652335,-183.21500843,0.00013972,2]
[332765511,1721508652347,-500.0,0.00013972,2]
[332765512,1721508652357,-568.38256445,0.00013972,2]
[332765513,1721508652369,-150.112233,0.00014,5]
[332765514,1721508652379,-150.112233,0.00014,3]
[332765515,1721508652389,-150.112233,0.00014,5]
[332765516,1721508652400,-150.112233,0.000141,2]
[332765517,1721508652411,-150.112233,0.000141,5]
[332765518,1721508652421,-150.112233,0.000141,3]
[332765519,1721508652433,-150.112233,0.000142,4]
[332765520,1721508652444,-150.112233,0.000142,2]
[332765521,1721508652454,-500.0,0.00014246,2]
[332765522,1721508652690,-500.0,0.00014246,2]
[332765523,1721508652704,-500.0,0.00014246,2]
[332765524,1721508652714,-500.0,0.00014246,2]
[332765525,1721508652724,-500.0,0.00014246,2]
[332765526,1721508652733,-2066.42,0.00014246,2]
[332765527,1721508652744,-232.95849691,0.00014246,2]
[332765528,1721508652754,-500.0,0.00014246,2]
[332765529,1721508652764,-607.91,0.00014246,2]
[332765530,1721508652775,-500.0,0.00014246,2]
[332765531,1721508652784,-500.0,0.00014246,2]
[332765532,1721508652794,-626.84,0.00014246,2]
[332765533,1721508652804,-1282.57,0.00014246,2]
[332765534,1721508652814,-500.0,0.00014246,2]
[332765535,1721508652824,-500.0,0.00014246,2]
[332765536,1721508652834,-500.0,0.00014246,2]
[332765537,1721508652844,-500.0,0.00014246,2]
[332765538,1721508652853,-500.0,0.00014246,2]
[332765539,1721508652862,-500.0,0.00014246,2]
[332765540,1721508652872,-574.73,0.00014246,2]
[332765541,1721508652882,-561.72,0.00014246,2]
[332765542,1721508652891,-500.0,0.00014246,2]
[332765543,1721508652900,-503.55041733,0.00014246,2]
[332765544,1721508652910,-500.0,0.00014246,2]
[332765545,1721508652920,-500.0,0.00014246,2]
[332765546,1721508652933,-500.0,0.00014246,2]
[332765547,1721508652945,-500.0,0.00014246,2]
[332765548,1721508652955,-500.0,0.00014246,2]
[332765549,1721508652966,-500.0,0.00014246,2]
[332765550,1721508652977,-423.73046473,0.00014246,2]
[332765551,1721508652988,-1064.01,0.00014246,2]
[332765552,1721508652999,-638.32,0.00014246,2]
[332765553,1721508653012,-500.0,0.00014246,2]
[332765554,1721508653023,-640.31,0.00014246,2]
[332765555,1721508653034,-571.92256385,0.00014246,2]
[332765556,1721508653046,-324.77928867,0.00014246,2]
[332765557,1721508653057,-500.0,0.00014246,2]
[332765558,1721508653067,-504.22135143,0.00014246,2]
[332765559,1721508653078,-500.0,0.00014246,2]
[332765560,1721508653089,-500.0,0.00014246,2]
[332765561,1721508653098,-500.0,0.00014246,2]
[332765562,1721508653109,-801.47,0.00014246,2]
[332765563,1721508653119,-500.0,0.00014246,2]
[332765564,1721508653128,-500.0,0.00014246,2]
[332765565,1721508653138,-500.0,0.00014246,2]
[332765566,1721508653148,-500.0,0.00014246,2]
[332765567,1721508653157,-500.0,0.00014246,2]
[332765568,1721508653168,-500.0,0.00014246,2]
[332765569,1721508653178,-500.0,0.00014246,2]
[332765570,1721508653190,-500.0,0.00014246,2]
[332765571,1721508653200,-500.0,0.00014246,2]
[332765572,1721508653210,-827.55,0.00014246,2]
[332765573,1721508653221,-500.0,0.00014246,2]
[332765574,1721508653231,-709.52,0.00014246,2]
[332765575,1721508653242,-901.43,0.00014246,2]
[332765576,1721508653252,-757.46,0.00014246,2]
[332765577,1721508653263,-2427.53,0.00014246,2]
[332765578,1721508653273,-500.0,0.00014246,2]
[332765579,1721508653283,-500.0,0.00014246,2]
[332765580,1721508653293,-500.0,0.00014246,2]
[332765581,1721508653307,-500.0,0.00014246,2]
[332765582,1721508653317,-500.0,0.00014246,2]
[332765583,1721508653328,-527.43,0.00014246,2]
[332765584,1721508653339,-500.0,0.00014246,2]
[332765585,1721508653349,-500.0,0.00014246,2]
[332765586,1721508653358,-500.0,0.00014246,2]
[332765587,1721508653368,-500.0,0.00014246,2]
[332765588,1721508653378,-815.02,0.00014246,2]
[332765589,1721508653387,-500.0,0.00014246,2]
[332765590,1721508653398,-1495.68,0.00014246,2]
[332765591,1721508653408,-500.0,0.00014246,2]
[332765592,1721508653418,-500.0,0.00014246,2]
[332765593,1721508653428,-500.0,0.00014246,2]
[332765594,1721508653437,-568.59,0.00014246,2]
[332765595,1721508653447,-508.54564734,0.00014246,2]
[332765596,1721508653457,-2686.8,0.00014246,2]
[332765597,1721508653467,-500.0,0.00014246,2]